bitfinex-derivatives/quotes_BTCF0:USTF0_20240825
["timestamp","ask_amount","ask_price","bid_price","bid_amount"]
[1724578317117,0.03015641,63843.0,63842.0,0.83417471]
[1724578317311,0.03015641,63843.0,63842.0,0.74034705]
[1724578319123,0.03015641,63843.0,63842.0,0.621068]
[1724578320716,0.12015641,63843.0,63842.0,0.531068]
[1724578321823,0.12015641,63843.0,63842.0,0.170268]
[1724578326228,0.12015641,63843.0,63842.0,0.28954205]
[1724578327324,0.12015641,63843.0,63842.0,0.43403431]
[1724578328323,0.12015641,63843.0,63842.0,0.28954205]
[1724578329330,0.12015641,63843.0,63842.0,0.43402475]
[1724578330129,0.03015641,63843.0,63842.0,0.43402475]
[1724578330333,0.03015641,63843.0,63842.0,0.52402475]
[1724578330529,0.03015641,63843.0,63842.0,0.52408306]
[1724578332234,0.12436,63849.0,63848.0,0.078261]
[1724578332435,0.12436,63849.0,63848.0,0.30753503]
[1724578332942,0.12436,63849.0,63848.0,0.30793503]
[1724578333428,0.12436,63849.0,63848.0,0.30893503]
[1724578333627,0.02886614,63849.0,63848.0,0.39893503]
[1724578333823,0.078249,63858.0,63851.0,0.078257]
[1724578334023,0.078249,63858.0,63851.0,0.46285841]
[1724578334238,0.078249,63858.0,63856.0,0.09]
[1724578334424,0.078249,63858.0,63857.0,0.11927403]
[1724578334626,0.078249,63858.0,63857.0,0.22927403]
[1724578334930,0.078249,63858.0,63857.0,0.22967403]
[1724578335236,0.170249,63858.0,63857.0,0.22967403]
[1724578335426,0.170249,63858.0,63857.0,0.30783441]
[1724578335928,0.19821863,63858.0,63857.0,0.30783441]
[1724578336124,0.19821863,63858.0,63857.0,0.18856038]
[1724578336934,0.20521863,63858.0,63857.0,0.18856038]
[1724578337126,0.20521863,63858.0,63857.0,0.1104]
[1724578337321,0.21321863,63858.0,63857.0,0.1104]
[1724578341247,0.30714124,63858.0,63857.0,0.1104]
[1724578346539,0.43160422,63858.0,63857.0,0.1104]
[1724578346735,0.30714124,63858.0,63857.0,0.1104]
[1724578347542,0.31716692,63858.0,63857.0,0.09936001]
[1724578347930,0.14891792,63858.0,63857.0,0.17761001]
[1724578348136,0.20481361,63858.0,63857.0,0.17761001]
[1724578348344,0.14891792,63858.0,63857.0,0.17761001]
[1724578348641,0.23504204,63858.0,63857.0,0.17761001]
[1724578349140,0.14891792,63858.0,63857.0,0.17761001]
[1724578349443,0.05099531,63858.0,63857.0,0.29685617]
[1724578349841,0.04699531,63858.0,63857.0,0.29685617]
[1724578352941,0.04699531,63858.0,63857.0,0.37495204]
[1724578353139,0.04699531,63858.0,63857.0,0.25570588]
[1724578353337,0.04699531,63858.0,63857.0,0.37495449]
[1724578353338,0.21524431,63858.0,63857.0,0.37495449]
[1724578355247,0.21524431,63858.0,63857.0,0.29685862]
[1724578356337,0.21524431,63858.0,63857.0,0.17761001]
[1724578356338,0.27084256,63858.0,63857.0,0.17761001]
[1724578358246,0.37972467,63858.0,63857.0,0.17761001]
[1724578358839,0.27084256,63858.0,63857.0,0.17761001]
[1724578359239,0.37972467,63858.0,63857.0,0.17761001]
[1724578359434,0.37972484,63858.0,63857.0,0.17761001]
[1724578360137,0.28972484,63858.0,63857.0,0.17761001]
[1724578360448,0.18084273,63858.0,63857.0,0.17761001]
[1724578361144,0.21916267,63858.0,63857.0,0.17761001]
[1724578361545,0.28985756,63858.0,63857.0,0.17761001]
[1724578362149,0.18084273,63858.0,63857.0,0.17761001]
[1724578362344,0.21916263,63858.0,63857.0,0.17761001]
[1724578364147,0.21916244,63858.0,63857.0,0.17761001]
[1724578364352,0.21916244,63858.0,63857.0,0.39068192]
[1724578364353,0.12524431,63858.0,63857.0,0.39068192]
[1724578365446,0.12524431,63858.0,63857.0,0.29685901]
[1724578372348,0.12524431,63858.0,63857.0,0.39068192]
[1724578373657,0.12524431,63858.0,63857.0,0.29685901]
[1724578377565,0.12524431,63858.0,63857.0,0.43951835]
[1724578378162,0.12524431,63858.0,63857.0,0.29685901]
[1724578378960,0.12524431,63858.0,63857.0,0.29685926]
[1724578379163,0.12524431,63858.0,63857.0,0.21860926]
[1724578379466,0.12524431,63858.0,63857.0,0.09936001]
[1724578379467,0.59515176,63858.0,63857.0,0.09936001]
[1724578379665,0.57996682,63858.0,63857.0,0.09936001]
[1724578380364,0.63164388,63858.0,63857.0,0.09936001]
[1724578380669,0.74083819,63858.0,63857.0,0.09936001]
[1724578381063,0.63164388,63858.0,63857.0,0.09936001]
[1724578381962,0.740838,63858.0,63857.0,0.09936001]
[1724578382572,0.63164388,63858.0,63857.0,0.09936001]
[1724578383467,0.27084388,63858.0,63857.0,0.09936001]
[1724578383673,0.63164388,63858.0,63857.0,0.09936001]
[1724578386376,0.57604431,63858.0,63857.0,0.21861842]
[1724578386567,0.21524431,63858.0,63857.0,0.21861842]
[1724578386773,0.57604431,63858.0,63857.0,0.21861842]
[1724578390876,0.21524431,63858.0,63857.0,0.21861842]
[1724578391079,0.57604431,63858.0,63857.0,0.21861842]
[1724578392363,0.62280609,63858.0,63857.0,0.09936001]
[1724578393477,0.66997236,63858.0,63857.0,0.09936001]
[1724578393672,0.63164841,63858.0,63857.0,0.09936001]
[1724578393871,0.27084841,63858.0,63857.0,0.09936001]
[1724578394072,0.63164841,63858.0,63857.0,0.09936001]
[1724578394470,0.66997232,63858.0,63857.0,0.09936001]
[1724578394874,0.63164841,63858.0,63857.0,0.09936001]
[1724578395268,0.740729,63858.0,63857.0,0.09936001]
[1724578395477,0.63164841,63858.0,63857.0,0.09936001]
[1724578396376,0.66997208,63858.0,63857.0,0.09936001]
[1724578397784,0.30917208,63858.0,63857.0,0.09936001]
[1724578397973,0.66997208,63858.0,63857.0,0.09936001]
[1724578398170,0.63164802,63858.0,63857.0,0.09936001]
[1724578398374,0.6699717,63858.0,63857.0,0.09936001]
[1724578399082,0.63164802,63858.0,63857.0,0.09936001]
[1724578401486,0.57604431,63858.0,63857.0,0.09936001]
[1724578401878,0.21524431,63858.0,63857.0,0.09936001]
[1724578402081,0.57604431,63858.0,63857.0,0.09936001]
[1724578402382,0.21524431,63858.0,63857.0,0.09936001]
[1724578402583,0.57604431,63858.0,63857.0,0.09936001]
[1724578407877,0.62279133,63858.0,63857.0,0.09936001]
[1724578408086,0.57604431,63858.0,63857.0,0.09936001]
[1724578408484,0.66997242,63858.0,63857.0,0.09936001]
[1724578408685,0.70989745,63858.0,63857.0,0.09936001]
[1724578408887,0.70989745,63858.0,63851.0,0.00023481]
[1724578408888,0.156514,63852.0,63851.0,0.00023481]
[1724578409088,0.67294382,63852.0,63851.0,0.00023481]
[1724578409283,0.71126817,63852.0,63851.0,0.00023481]
[1724578409492,0.80596817,63852.0,63851.0,0.00023481]
[1724578409686,0.85895435,63852.0,63851.0,0.00023481]
[1724578410087,0.85895435,63852.0,63851.0,0.00223481]
[1724578410795,0.85895435,63852.0,63851.0,0.00423481]
[1724578413295,0.71243968,63852.0,63851.0,0.00423481]
[1724578413487,0.80638134,63852.0,63851.0,0.00423481]
[1724578413688,0.85904919,63852.0,63851.0,0.00423481]
[1724578415996,0.078266,63844.0,63843.0,0.0486]
[1724578416295,0.078266,63844.0,63843.0,0.0886]
[1724578416296,0.23390384,63844.0,63843.0,0.0886]
[1724578416592,0.17829168,63844.0,63843.0,0.2078799]
[1724578416787,0.17869168,63844.0,63843.0,0.2078799]
[1724578417584,0.17969168,63844.0,63843.0,0.28703847]
[1724578418299,0.18069168,63844.0,63843.0,0.28903847]
[1724578420388,0.18069168,63844.0,63843.0,0.28903106]
[1724578420588,0.18069168,63844.0,63843.0,0.2108799]
[1724578420994,0.2086177,63844.0,63843.0,0.2108799]
[1724578427200,0.2086177,63844.0,63843.0,0.21087991]
[1724578428199,0.2086177,63844.0,63843.0,0.16227991]
[1724578428400,0.2868837,63844.0,63843.0,0.043]
[1724578431505,0.4056595,63844.0,63843.0,0.043]
[1724578432006,0.31226321,63844.0,63843.0,0.043]
[1724578434601,0.67306321,63844.0,63843.0,0.043]
[1724578436519,0.59479721,63844.0,63843.0,0.043]
[1724578437521,0.62503379,63844.0,63843.0,0.043]
[1724578438728,0.62503379,63844.0,63843.0,0.2404428]
[1724578438729,0.5694177,63844.0,63843.0,0.2404428]
[1724578438926,0.4794177,63844.0,63843.0,0.2404428]
[1724578439131,0.4794177,63844.0,63843.0,0.16228717]
[1724578439522,0.5694177,63844.0,63843.0,0.16228717]
[1724578441332,0.5694177,63844.0,63843.0,0.16228542]
[1724578442227,0.4794177,63844.0,63843.0,0.16228542]
[1724578442428,0.4011517,63844.0,63843.0,0.33055342]
[1724578443542,0.0403517,63844.0,63843.0,0.37915342]
[1724578443925,0.0403517,63844.0,63843.0,0.9941919]
[1724578444625,0.03032602,63844.0,63843.0,0.5243119]
[1724578444828,0.07849381,63850.0,63847.0,0.078262]
[1724578445028,0.07849381,63850.0,63848.0,0.20928542]
[1724578445333,0.07849381,63850.0,63849.0,0.19754542]
[1724578445641,0.07849381,63850.0,63849.0,0.29754542]
[1724578445836,0.07849381,63850.0,63849.0,0.29752684]
[1724578446033,0.07949381,63850.0,63849.0,0.29792684]
[1724578446728,0.17342608,63850.0,63849.0,0.17866]
[1724578447024,0.20134795,63850.0,63849.0,0.17866]
[1724578447424,0.20234795,63850.0,63849.0,0.17866]
[1724578447634,0.20134795,63850.0,63849.0,0.18166]
[1724578448036,0.20034795,63850.0,63849.0,0.18166]
[1724578448237,0.20034795,63850.0,63849.0,0.18466]
[1724578450437,0.20034795,63850.0,63849.0,0.16619401]
[1724578450833,0.20034785,63850.0,63849.0,0.1064]
[1724578451230,0.2523083,63850.0,63849.0,0.1064]
[1724578451533,0.37163331,63850.0,63849.0,0.1064]
[1724578452343,0.27860785,63850.0,63849.0,0.1064]
[1724578452527,0.77970785,63850.0,63849.0,0.1064]
[1724578452839,0.8316683,63850.0,63849.0,0.1064]
[1724578453435,0.8316683,63850.0,63849.0,0.0064]
[1724578453628,0.68577568,63850.0,63849.0,0.0064]
[1724578459641,0.74804767,63850.0,63849.0,0.0064]
[1724578459841,0.68577568,63850.0,63849.0,0.0064]
[1724578460333,0.74804889,63850.0,63849.0,0.0064]
[1724578460645,0.68577568,63850.0,63849.0,0.0064]
[1724578461244,0.55911568,63850.0,63849.0,0.0064]
[1724578461444,0.64911568,63850.0,63849.0,0.0264]
[1724578461639,0.69735386,63850.0,63849.0,0.00820146]
[1724578464048,0.078267,63844.0,63840.0,0.079071]
[1724578464249,0.078267,63844.0,63841.0,0.01957935]
[1724578464250,0.0556101,63843.0,63841.0,0.01957935]
[1724578464542,0.0556101,63842.0,63841.0,0.11]
[1724578464743,0.0556101,63842.0,63841.0,0.1295794]
[1724578465047,0.0556101,63842.0,63841.0,0.11]
[1724578465246,0.2238791,63842.0,63841.0,0.11]
[1724578465547,0.26220718,63842.0,63841.0,0.11]
[1724578467033,0.26320718,63842.0,63841.0,0.11]
[1724578467439,0.26320718,63842.0,63841.0,0.111]
[1724578467440,0.03850718,63842.0,63841.0,0.111]
[1724578467654,0.10904526,63848.0,63842.0,0.46988]
[1724578467944,0.078262,63848.0,63847.0,0.3608]
[1724578468133,0.10849121,63848.0,63847.0,0.47038018]
[1724578468338,0.50761917,63848.0,63847.0,0.0904]
[1724578468740,0.50761917,63848.0,63847.0,0.20967577]
[1724578468741,0.39990388,63848.0,63847.0,0.20967577]
[1724578468943,0.40090388,63848.0,63847.0,0.20967577]
[1724578469943,0.49090388,63848.0,63847.0,0.20967577]
[1724578470147,0.49190388,63848.0,63847.0,0.20967577]
[1724578470350,0.48158809,63848.0,63847.0,0.20967577]
[1724578470647,0.48158809,63848.0,63847.0,0.21167577]
[1724578470855,0.39158809,63848.0,63847.0,0.21167577]
[1724578471748,0.03078809,63848.0,63847.0,0.30167577]
[1724578472048,0.04623481,63854.0,63853.0,0.078255]
[1724578472251,0.04623481,63854.0,63853.0,0.28753077]
[1724578472552,0.04623481,63854.0,63853.0,0.3071062]
[1724578472843,0.00023481,63854.0,63853.0,0.40131246]
[1724578473038,0.00023481,63854.0,63853.0,1.17734593]
[1724578473646,0.00023481,63854.0,63853.0,1.17731514]
[1724578473647,0.02912822,63854.0,63853.0,1.17731514]
[1724578474242,0.01538433,63854.0,63853.0,1.17731512]
[1724578474539,0.3608,63864.0,63863.0,0.078243]
[1724578474744,0.3608,63864.0,63863.0,0.278243]
[1724578475249,0.3608,63867.0,63865.0,0.078241]
[1724578475446,0.3608,63867.0,63866.0,0.06246522]
[1724578475650,0.3608,63867.0,63866.0,0.16246522]
[1724578476046,0.3608,63867.0,63866.0,0.16286522]
[1724578476244,0.3608,63867.0,63866.0,0.1004]
[1724578476640,0.16613737,63868.0,63866.0,0.1004]
[1724578476846,0.42934433,63867.0,63866.0,0.1004]
[1724578477152,0.16613737,63868.0,63866.0,0.1004]
[1724578477153,0.02813737,63868.0,63866.0,0.26864]
[1724578477347,0.08007179,63876.0,63875.0,0.078228]
[1724578477546,0.23376088,63906.0,63889.0,0.078211]
[1724578477547,0.10889372,63891.0,63889.0,0.078211]
[1724578477750,0.14001318,63903.0,63889.0,0.05]
[1724578477751,0.09,63890.0,63889.0,0.05]
[1724578478454,0.14153481,63896.0,63889.0,0.4108]
[1724578479042,0.014,63890.0,63889.0,0.4108]
[1724578479249,0.0136,63890.0,63889.0,0.4108]
[1724578480556,0.0276,63890.0,63889.0,0.4108]
[1724578481352,0.014,63890.0,63889.0,0.4108]
[1724578482045,0.028,63890.0,63889.0,0.4108]
[1724578483751,0.078211,63889.0,63883.0,0.00023481]
[1724578483952,0.439013,63888.0,63883.0,0.02023481]
[1724578484455,0.078215,63886.0,63883.0,0.02023481]
[1724578484657,0.3608,63888.0,63883.0,0.02023481]
[1724578485457,0.3608,63888.0,63887.0,0.439414]
[1724578485458,0.008,63888.0,63887.0,0.439414]
[1724578485648,0.008,63888.0,63887.0,0.529414]
[1724578486954,0.02,63888.0,63887.0,0.529414]
[1724578487156,0.078206,63894.0,63887.0,0.529414]
[1724578487357,0.078206,63894.0,63888.0,0.078212]
[1724578487555,0.078206,63894.0,63888.0,0.178212]
[1724578487864,0.078206,63894.0,63893.0,0.0004]
[1724578488060,0.078206,63894.0,63893.0,0.0304]
[1724578488252,0.078206,63894.0,63893.0,0.3912]
[1724578488253,0.0283928,63894.0,63893.0,0.3912]
[1724578488459,0.00023481,63896.0,63893.0,0.469406]
[1724578488654,0.026,63894.0,63893.0,0.469406]
[1724578490058,0.013,63894.0,63893.0,0.469406]
[1724578490254,0.027,63894.0,63893.0,0.470406]
[1724578490961,0.017,63894.0,63893.0,0.471406]
[1724578492859,0.0036,63918.0,63893.0,0.6132]
[1724578493158,0.078189,63908.0,63905.0,0.078192]
[1724578493462,0.078191,63906.0,63905.0,0.1]
[1724578494863,0.106191,63906.0,63905.0,0.102]
[1724578495864,0.028,63906.0,63905.0,0.180192]
[1724578498360,0.028,63906.0,63905.0,0.179192]
[1724578498361,0.017,63906.0,63905.0,0.179192]
[1724578499463,0.017,63906.0,63905.0,0.539992]
[1724578499666,0.04507097,63906.0,63905.0,0.539992]
[1724578499974,0.03207097,63906.0,63905.0,0.538992]
[1724578500159,0.02877097,63906.0,63905.0,0.538992]
[1724578500762,0.03077097,63906.0,63905.0,0.538992]
[1724578500955,0.02977097,63906.0,63905.0,0.538992]
[1724578501164,0.06097244,63906.0,63905.0,0.538992]
[1724578501680,0.03077097,63906.0,63905.0,0.538992]
[1724578501865,0.1237684,63906.0,63905.0,0.837184]
[1724578502065,0.1237684,63906.0,63905.0,1.706624]
[1724578502066,0.03077097,63906.0,63905.0,1.706624]
[1724578502372,0.00023481,63912.0,63911.0,0.156368]
[1724578502673,0.02831141,63912.0,63911.0,1.306568]
[1724578502861,0.00023481,63912.0,63911.0,1.706568]
[1724578503166,0.00023481,63912.0,63911.0,1.706968]
[1724578503573,0.00123481,63912.0,63911.0,1.707968]
[1724578504064,0.00423481,63912.0,63911.0,1.708968]
[1724578504374,0.00423481,63912.0,63911.0,1.629784]
[1724578504665,0.00423481,63912.0,63911.0,1.229784]
[1724578505173,0.00323481,63912.0,63911.0,1.228784]
[1724578505471,0.09632901,63912.0,63911.0,1.228784]
[1724578505871,0.00323481,63912.0,63911.0,1.228784]
[1724578506367,0.03193681,63912.0,63911.0,1.228784]
[1724578506569,0.00323481,63912.0,63911.0,1.228784]
[1724578506972,0.16998014,63923.0,63920.0,0.078173]
[1724578506973,0.0455,63923.0,63920.0,0.078173]
[1724578507168,0.09314337,63959.0,63925.0,0.078166]
[1724578507169,0.078161,63930.0,63925.0,0.078166]
[1724578507473,0.0984,63927.0,63925.0,0.25039414]
[1724578507679,0.0984,63927.0,63926.0,0.06222814]
[1724578507863,0.0984,63927.0,63926.0,0.15222814]
[1724578508176,0.176565,63927.0,63926.0,0.09]
[1724578508377,0.176565,63927.0,63926.0,0.0151]
[1724578508571,0.176565,63927.0,63926.0,0.06175144]
[1724578510284,0.178565,63927.0,63926.0,0.06275144]
[1724578510483,0.178565,63927.0,63926.0,0.06375144]
[1724578510880,0.176565,63927.0,63926.0,0.06275144]
[1724578511080,0.178565,63927.0,63926.0,0.06375144]
[1724578511391,0.178565,63927.0,63926.0,0.06415144]
[1724578512891,0.200465,63927.0,63926.0,0.06415144]
[1724578513786,0.16135469,63927.0,63926.0,0.06415144]
[1724578513990,0.102065,63927.0,63926.0,0.0175]
[1724578516989,0.151565,63927.0,63926.0,0.0175]
[1724578517195,0.0734,63927.0,63926.0,0.0175]
[1724578517893,0.151565,63927.0,63926.0,0.0175]
[1724578521801,0.151565,63927.0,63926.0,0.09521432]
[1724578522096,0.22004388,63927.0,63926.0,0.0175]
[1724578522589,0.22004388,63927.0,63920.0,0.07840681]
[1724578522590,0.078172,63921.0,63920.0,0.00023481]
[1724578522900,0.108369,63921.0,63920.0,0.09023481]
[1724578523102,0.108369,63921.0,63911.0,0.31431221]
[1724578523103,1.01597354,63921.0,63911.0,0.31431221]
[1724578523395,0.50089947,63915.0,63911.0,0.1]
[1724578523599,0.14009947,63913.0,63911.0,0.1]
[1724578523788,0.20668154,63914.0,63911.0,0.1]
[1724578523789,0.20858101,63912.0,63911.0,0.1]
[1724578523990,0.24847947,63912.0,63911.0,0.1]
[1724578524190,0.078191,63906.0,63905.0,0.00023481]
[1724578524395,0.469188,63906.0,63905.0,0.01023481]
[1724578524601,0.50747765,63906.0,63905.0,0.01023481]
[1724578525489,0.89872665,63906.0,63895.0,0.02]
[1724578525695,0.078202,63897.0,63895.0,0.09]
[1724578525889,0.12310843,63896.0,63895.0,0.09]
[1724578526099,0.48390843,63896.0,63895.0,0.09]
[1724578526303,0.52220481,63896.0,63895.0,0.09]
[1724578526702,0.66230428,63896.0,63895.0,0.09]
[1724578527205,0.52220481,63896.0,63895.0,0.108]
[1724578527391,0.66213592,63896.0,63895.0,0.108]
[1724578528498,0.52220481,63896.0,63895.0,0.108]
[1724578528700,0.56890481,63896.0,63895.0,0.108]
[1724578528898,0.5004,63896.0,63895.0,0.108]
[1724578529090,0.1396,63896.0,63895.0,0.108]
[1724578529296,0.1396,63896.0,63895.0,0.17029916]
[1724578529601,0.1396,63896.0,63895.0,0.108]
[1724578530597,0.1396,63896.0,63895.0,0.15469173]
[1724578530994,0.1396,63896.0,63895.0,0.108]
[1724578531195,0.1396,63896.0,63895.0,0.15469153]
[1724578531401,0.1396,63896.0,63895.0,0.108]
[1724578531402,0.217803,63896.0,63895.0,0.108]
[1724578537299,0.218203,63896.0,63895.0,0.108]
[1724578539410,0.170603,63896.0,63895.0,0.108]
[1724578544913,0.468806,63896.0,63895.0,0.108]
[1724578545120,1.338326,63896.0,63895.0,0.108]
[1724578545413,0.07821,63890.0,63889.0,0.00023481]
[1724578545717,0.07821,63890.0,63889.0,0.07023481]
[1724578546320,0.07861,63890.0,63889.0,0.07023481]
[1724578546919,0.07961,63890.0,63889.0,0.09823481]
[1724578548417,0.07961,63890.0,63889.0,0.14492634]
[1724578548920,0.07961,63890.0,63889.0,0.09823481]
[1724578549120,0.07961,63890.0,63889.0,0.14494792]
[1724578549515,0.07961,63890.0,63889.0,0.09823481]
[1724578551526,0.07961,63890.0,63889.0,0.16053397]
[1724578551823,0.07961,63890.0,63889.0,0.09823481]
[1724578552020,0.18839919,63890.0,63889.0,0.09823481]
[1724578552211,0.21861372,63890.0,63889.0,0.09823481]
[1724578552412,0.14812858,63890.0,63889.0,0.09823481]
[1724578552618,0.44633858,63890.0,63889.0,0.09823481]
[1724578552815,0.07822,63882.0,63881.0,0.00017187]
[1724578553122,0.46923453,63882.0,63881.0,0.04017187]
[1724578553424,0.50753858,63882.0,63881.0,0.04017187]
[1724578553618,0.60103858,63882.0,63881.0,0.04017187]
[1724578554018,0.60103858,63882.0,63881.0,0.04417187]
[1724578554220,0.60104768,63882.0,63881.0,0.04417187]
[1724578555715,0.24024768,63882.0,63881.0,0.04417187]
[1724578555913,0.60104768,63882.0,63881.0,0.04417187]
[1724578556720,0.24024768,63882.0,63881.0,0.04417187]
[1724578557116,0.60104768,63882.0,63881.0,0.04417187]
[1724578557318,0.62980665,63882.0,63881.0,0.04417187]
[1724578558720,0.58460665,63882.0,63881.0,0.04417187]
[1724578558920,0.51607897,63882.0,63881.0,0.24109725]
[1724578559116,0.4769421,63882.0,63881.0,0.24109725]
[1724578559922,0.43785897,63882.0,63881.0,0.24109725]
[1724578560228,0.43785897,63882.0,63881.0,0.16338293]
[1724578562023,0.07705897,63882.0,63881.0,0.16338293]
[1724578563826,0.07705897,63882.0,63881.0,0.16338125]
[1724578564734,0.07705897,63882.0,63881.0,0.24160225]
[1724578566931,0.18549642,63882.0,63881.0,0.12239287]
[1724578567231,0.18549642,63882.0,63881.0,0.04417187]
[1724578568433,0.18549732,63882.0,63881.0,0.04417187]
[1724578569844,0.15527897,63882.0,63881.0,0.04417187]
[1724578572744,0.51607897,63882.0,63881.0,0.04417187]
[1724578573045,0.54629792,63882.0,63881.0,0.04417187]
[1724578574040,0.51607897,63882.0,63881.0,0.04417187]
[1724578574633,0.15527897,63882.0,63881.0,0.2414384]
[1724578574831,0.51607897,63882.0,63881.0,0.24153707]
[1724578575235,0.51607897,63882.0,63881.0,0.1633893]
[1724578575739,0.15527897,63882.0,63881.0,0.1633893]
[1724578575939,0.51607897,63882.0,63881.0,0.1633893]
[1724578576727,0.15527897,63882.0,63881.0,0.1633893]
[1724578576931,0.51607897,63882.0,63881.0,0.1633893]
[1724578577335,0.15527897,63882.0,63881.0,0.1633893]
[1724578577830,1.60585084,63882.0,63877.0,0.09325719]
[1724578578144,0.078238,63867.0,63866.0,0.00797273]
[1724578578434,0.078238,63867.0,63866.0,0.1192384]
[1724578578840,0.07877262,63867.0,63866.0,0.1192384]
[1724578579142,0.07877262,63867.0,63866.0,0.07815592]
[1724578579343,0.07824,63866.0,63865.0,0.07815592]
[1724578579737,0.07824,63866.0,63865.0,0.08815592]
[1724578580135,0.07864,63866.0,63865.0,0.08815592]
[1724578580340,0.10216001,63866.0,63865.0,0.01]
[1724578580530,0.07864,63866.0,63865.0,0.01]
[1724578581845,0.07964,63866.0,63865.0,0.01]
[1724578582146,0.08064,63866.0,63865.0,0.011]
[1724578583746,0.10906367,63866.0,63865.0,0.011]
[1724578585044,0.10906367,63866.0,63860.0,0.00023481]
[1724578585045,0.078242,63864.0,63863.0,0.06244834]
[1724578585349,0.078242,63864.0,63860.0,0.00023481]
[1724578585350,0.078243,63863.0,63862.0,0.06244834]
[1724578585645,0.078243,63863.0,63860.0,0.00023481]
[1724578585646,0.078244,63862.0,63861.0,0.06244834]
[1724578586043,0.078246,63861.0,63860.0,0.00023481]
[1724578586347,0.078246,63861.0,63860.0,0.01023481]
[1724578586534,0.078241,63865.0,63860.0,0.07264959]
[1724578586735,0.39162367,63866.0,63863.0,0.06201339]
[1724578586942,0.39162367,63866.0,63863.0,0.07201339]
[1724578586943,0.078242,63864.0,63863.0,0.07201339]
[1724578587138,0.078242,63864.0,63863.0,0.01]
[1724578587344,0.079242,63864.0,63863.0,0.01]
[1724578588060,0.078242,63864.0,63863.0,0.01]
[1724578588643,0.080242,63864.0,63863.0,0.011]
[1724578589045,0.10561315,63864.0,63863.0,0.011]
[1724578594050,0.10561321,63864.0,63863.0,0.011]
[1724578594252,0.080242,63864.0,63863.0,0.011]
[1724578594658,0.10561317,63864.0,63863.0,0.011]
[1724578595041,0.13584002,63864.0,63863.0,0.011]
[1724578596354,0.080242,63864.0,63863.0,0.011]
[1724578598447,0.170242,63864.0,63863.0,0.011]
[1724578602660,0.19376201,63864.0,63863.0,0.011]
[1724578602857,0.170242,63864.0,63863.0,0.011]
[1724578603048,0.19376201,63864.0,63863.0,0.011]
[1724578603244,0.248484,63864.0,63863.0,0.011]
[1724578606050,0.609284,63864.0,63863.0,0.011]
[1724578606247,0.65592701,63864.0,63863.0,0.011]
[1724578606451,0.609284,63864.0,63863.0,0.011]
[1724578611355,0.63465687,63864.0,63863.0,0.011]
[1724578611961,0.27385687,63864.0,63863.0,0.011]
[1724578612466,0.63465687,63864.0,63863.0,0.011]
[1724578613365,0.46641487,63864.0,63863.0,0.011]
[1724578613565,0.51898309,63864.0,63863.0,0.101]
[1724578613768,0.441042,63864.0,63863.0,0.101]
[1724578614154,0.441042,63864.0,63863.0,0.14792622]
[1724578615265,0.441042,63864.0,63863.0,0.101]
[1724578615466,0.002,63864.0,63863.0,0.179243]
[1724578615663,0.02842367,63866.0,63865.0,0.078241]
[1724578615964,0.00013462,63867.0,63866.0,0.07824]
[1724578616158,0.04689566,63867.0,63866.0,0.27824]
[1724578616361,0.04689566,63867.0,63866.0,0.74796]
[1724578616562,0.00013462,63867.0,63866.0,0.74796]
[1724578616768,0.04689566,63867.0,63866.0,0.74836]
[1724578617571,0.04689566,63867.0,63866.0,0.27864]
[1724578617767,0.04689566,63867.0,63866.0,1.14836]
[1724578618279,0.00113462,63867.0,63866.0,1.14836]
[1724578618785,0.00213462,63867.0,63866.0,0.75036]
[1724578619084,0.00213462,63867.0,63866.0,1.15036]
[1724578619279,0.03005355,63867.0,63866.0,1.15036]
[1724578619477,0.078234,63871.0,63867.0,0.078238]
[1724578619679,0.078234,63871.0,63868.0,0.19746648]
[1724578619874,0.078234,63871.0,63869.0,0.20922948]
[1724578620076,0.078234,63871.0,63870.0,0.11922948]
[1724578620279,0.078234,63871.0,63870.0,0.22962948]
[1724578621482,0.079234,63871.0,63870.0,0.22962948]
[1724578622077,0.079234,63871.0,63870.0,0.30772024]
[1724578622274,0.078234,63871.0,63870.0,0.30772024]
[1724578622481,0.078234,63871.0,63870.0,0.30972024]
[1724578622874,0.078234,63871.0,63870.0,0.23162948]
[1724578623284,0.078234,63871.0,63870.0,0.30971022]
[1724578623787,0.439034,63871.0,63870.0,0.1124]
[1724578624690,0.536734,63871.0,63870.0,0.1124]
[1724578626385,0.59233034,63871.0,63870.0,0.1124]
[1724578627387,0.23153034,63871.0,63870.0,0.1124]
[1724578627691,0.59233034,63871.0,63870.0,0.1124]
[1724578627991,0.67056434,63871.0,63870.0,0.05594765]
[1724578628980,0.67056434,63871.0,63870.0,0.002]
[1724578631097,0.30976434,63871.0,63870.0,0.002]
[1724578631395,0.67056434,63871.0,63870.0,0.002]
[1724578631586,1.42056434,63871.0,63870.0,0.002]
[1724578631783,1.4205652,63871.0,63870.0,0.002]
[1724578634495,1.05085633,63871.0,63870.0,0.002]
[1724578634697,1.364968,63871.0,63870.0,0.002]
[1724578634892,1.41165633,63871.0,63870.0,0.002]
[1724578635087,1.05085633,63871.0,63870.0,0.002]
[1724578635291,1.41165633,63871.0,63870.0,0.002]
[1724578635789,1.364968,63871.0,63870.0,0.012]
[1724578636188,1.286734,63871.0,63870.0,0.012]
[1724578636495,1.286734,63871.0,63870.0,0.002]
[1724578636898,0.078241,63865.0,63863.0,0.07808074]
[1724578637084,0.168241,63865.0,63863.0,0.1]
[1724578637899,0.0004,63864.0,63863.0,0.1]
[1724578638101,0.0004,63864.0,63863.0,0.103]
[1724578638300,0.0004,63864.0,63863.0,0.104]
[1724578638500,0.0004,63864.0,63863.0,0.18208074]
[1724578639197,0.078642,63864.0,63863.0,0.104]
[1724578639800,0.078642,63864.0,63863.0,0.101]
[1724578640000,0.127042,63864.0,63863.0,0.103]
[1724578640394,0.15542509,63864.0,63863.0,0.103]
[1724578640594,0.15642509,63864.0,63863.0,0.103]
[1724578641393,0.18179614,63864.0,63863.0,0.103]
[1724578646199,0.21202297,63864.0,63863.0,0.103]
[1724578646399,0.1817962,63864.0,63863.0,0.103]
[1724578646595,0.21202304,63864.0,63863.0,0.103]
[1724578646806,0.1817962,63864.0,63863.0,0.103]
[1724578648001,0.1343962,63864.0,63863.0,0.103]
[1724578649504,0.10902509,63864.0,63863.0,0.18108074]
[1724578650309,0.10902509,63864.0,63863.0,0.30032813]